fUSD/lending_fUSD_20250510
["ID","MTS","AMOUNT","RATE_DAILY","PERIOD"]
[360539435,1746865832578,-500.0,0.00019998,2]
[360539436,1746865832589,-500.0,0.00019998,2]
[360539437,1746865832599,-594.81545298,0.00019998,2]
[360539438,1746865832609,-500.0,0.00019998,2]
[360539439,1746865832619,-500.0,0.00019998,2]
[360539440,1746865832630,-500.0,0.00019998,2]
[360539441,1746865832641,-500.0,0.00019998,2]
[360539442,1746865832653,-500.0,0.00019998,2]
[360539443,1746865832664,-500.0,0.00019998,2]
[360539444,1746865832674,-500.0,0.00019998,2]
[360539445,1746865832687,-500.0,0.00019998,2]
[360539446,1746865832696,-500.0,0.00019998,2]
[360539447,1746865832707,-500.0,0.00019998,2]
[360539448,1746865832716,-500.0,0.00019998,2]
[360539449,1746865832728,-500.0,0.00019998,2]
[360539450,1746865832738,-500.0,0.00019998,2]
[360539451,1746865832747,-500.0,0.00019998,2]
[360539452,1746865832757,-500.0,0.00019998,2]
[360539453,1746865832767,-500.0,0.00019998,2]
[360539454,1746865832776,-500.0,0.00019998,2]
[360539455,1746865832787,-500.0,0.00019998,2]
[360539456,1746865832796,-500.0,0.00019998,2]
[360539457,1746865832806,-500.0,0.00019998,2]
[360539458,1746865832815,-500.0,0.00019998,2]
[360539459,1746865832824,-500.0,0.00019998,2]
[360539460,1746865832835,-500.0,0.00019998,2]
[360539461,1746865832845,-500.0,0.00019998,2]
[360539462,1746865832855,-500.0,0.00019998,2]
[360539463,1746865832864,-500.0,0.00019998,2]
[360539464,1746865832874,-500.0,0.00019998,2]
[360539465,1746865832884,-500.0,0.00019998,2]
[360539466,1746865832894,-500.0,0.00019998,2]
[360539467,1746865832905,-500.0,0.00019998,2]
[360539468,1746865832918,-500.0,0.00019998,2]
[360539469,1746865832930,-500.0,0.00019998,2]
[360539470,1746865832941,-500.0,0.00019998,2]
[360539471,1746865832952,-500.0,0.00019998,2]
[360539472,1746865832961,-500.0,0.00019998,2]
[360539473,1746865832971,-500.0,0.00019998,2]
[360539474,1746865832981,-500.0,0.00019998,2]
[360539475,1746865832990,-500.0,0.00019998,2]
[360539476,1746865833000,-500.0,0.00019998,2]
[360539477,1746865833015,-500.0,0.00019998,2]
[360539478,1746865833026,-500.0,0.00019998,2]
[360539479,1746865833036,-500.0,0.00019998,2]
[360539480,1746865833046,-500.0,0.00019998,2]
[360539481,1746865833056,-500.0,0.00019998,2]
[360539482,1746865833066,-500.0,0.00019998,2]
[360539483,1746865833077,-500.0,0.00019998,2]
[360539484,1746865833088,-500.0,0.00019998,2]
[360539485,1746865833099,-620.501584,0.00019998,2]
[360539486,1746865833110,-620.501584,0.00019998,2]
[360539487,1746865833120,-620.501584,0.00019998,2]
[360539488,1746865833130,-620.501584,0.00019998,2]
[360539489,1746865833142,-620.501584,0.00019998,2]
[360539490,1746865833155,-620.501584,0.00019998,2]
[360539491,1746865833165,-620.501584,0.00019998,2]
[360539492,1746865833175,-620.501584,0.00019998,2]
[360539493,1746865833186,-620.501584,0.00019998,2]
[360539494,1746865833196,-620.501584,0.00019998,2]
[360539495,1746865833206,-620.501584,0.00019998,2]
[360539496,1746865833216,-620.501584,0.00019998,2]
[360539497,1746865833226,-620.501584,0.00019998,2]
[360539498,1746865833236,-620.501584,0.00019998,2]
[360539499,1746865833246,-620.501584,0.00019998,2]
[360539500,1746865833256,-620.501584,0.00019998,2]
[360539501,1746865833268,-620.501584,0.00019998,2]
[360539502,1746865833279,-620.501584,0.00019998,2]
[360539503,1746865833289,-620.501584,0.00019998,2]
[360539504,1746865833299,-620.501584,0.00019998,2]
[360539505,1746865833309,-620.501584,0.00019998,2]
[360539506,1746865833319,-620.501584,0.00019998,2]
[360539507,1746865833329,-620.501584,0.00019998,2]
[360539508,1746865833340,-620.501584,0.00019998,2]
[360539509,1746865833350,-620.501584,0.00019998,2]
[360539510,1746865833360,-620.501584,0.00019998,2]
[360539511,1746865833370,-620.501584,0.00019998,2]
[360539512,1746865833381,-620.501584,0.00019998,2]
[360539513,1746865833392,-620.501584,0.00019998,2]
[360539514,1746865833402,-620.501584,0.00019998,2]
[360539515,1746865833412,-620.501584,0.00019998,2]
[360539516,1746865833423,-620.501584,0.00019998,2]
[360539517,1746865833435,-620.501584,0.00019998,2]
[360539518,1746865833446,-620.501584,0.00019998,2]
[360539519,1746865833456,-620.501584,0.00019998,2]
[360539520,1746865833471,-620.501584,0.00019998,2]
[360539521,1746865833482,-620.501584,0.00019998,2]
[360539522,1746865833493,-620.501584,0.00019998,2]
[360539523,1746865833504,-400.0,0.00019999,2]
[360539524,1746865833514,-400.0,0.00019999,2]
[360539525,1746865833526,-400.0,0.00019999,2]
[360539526,1746865833537,-361.98,0.00019999,2]
[360539527,1746865833548,-6029.16017978,0.00019999,2]
[360539528,1746865833558,-400.0,0.00019999,2]
[360539529,1746865833570,-400.0,0.00019999,2]
[360539530,1746865833581,-500.0,0.00019999,2]
[360539531,1746865833592,-532.77983624,0.00019999,2]
[360539532,1746865833602,-500.0,0.00019999,2]
[360539533,1746865833613,-277.00701529,0.00019999,2]
[360539534,1746865833624,-400.0,0.00019999,2]
[360539535,1746865833634,-496.5,0.00019999,2]
[360539537,1746865833647,-400.0,0.00019999,2]
[360539539,1746865833658,-309.29,0.00019999,2]
[360539541,1746865833668,-400.0,0.00019999,2]
[360539543,1746865833678,-287.89,0.00019999,2]
[360539545,1746865833689,-833.17,0.00019999,2]
[360539546,1746865833700,-833.17,0.00019999,2]
[360539547,1746865833712,-833.17,0.00019999,2]
[360539548,1746865833724,-833.17,0.00019999,2]
[360539549,1746865833735,-833.17,0.00019999,2]
[360539550,1746865833745,-833.17,0.00019999,2]
[360539551,1746865833756,-833.17,0.00019999,2]
[360539552,1746865833766,-833.17,0.00019999,2]
[360539553,1746865833776,-833.17,0.00019999,2]
[360539554,1746865833786,-833.17,0.00019999,2]
[360539555,1746865833796,-833.17,0.00019999,2]
[360539556,1746865833806,-833.17,0.00019999,2]
[360539557,1746865833816,-833.17,0.00019999,2]
[360539558,1746865833826,-833.17,0.00019999,2]
[360539559,1746865833836,-833.17,0.00019999,2]
[360539560,1746865833846,-833.17,0.00019999,2]
[360539561,1746865833857,-833.17,0.00019999,2]
[360539562,1746865833866,-833.17,0.00019999,2]
[360539563,1746865833876,-833.17,0.00019999,2]
[360539564,1746865833886,-833.17,0.00019999,2]
[360539565,1746865833895,-833.17,0.00019999,2]
[360539566,1746865833906,-833.17,0.00019999,2]
[360539567,1746865833915,-833.17,0.00019999,2]
[360539568,1746865833929,-833.27925933,0.00019999,2]
[360539569,1746865833939,-369.72009495,0.00019999,2]
[360539570,1746865833948,-501.43580125,0.00019999,2]
[360539571,1746865833958,-400.0,0.00019999,2]
[360539572,1746865833968,-400.0,0.00019999,2]
[360539573,1746865833979,-400.0,0.00019999,2]
[360539574,1746865833988,-206.24169963,0.00019999,2]
[360539575,1746865833998,-450.0,0.00019999,2]
[360539576,1746865834007,-482.34071847,0.00019999,2]
[360539577,1746865834017,-400.0,0.00019999,2]
[360539578,1746865834027,-290.19630198,0.00019999,2]
[360539579,1746865834285,-478.55023677,0.00019999,2]
[360539580,1746865834296,-450.0,0.00019999,2]
[360539581,1746865834307,-450.0,0.00019999,2]
[360539582,1746865834317,-459.8329904,0.00019999,2]
[360539583,1746865834328,-182.78999546,0.00019999,2]
[360539584,1746865834349,-217.21000454,0.00019999,2]
[360539585,1746865834360,-400.0,0.00019999,2]
[360539586,1746865834370,-450.0,0.00019999,2]
[360539587,1746865834380,-124.5790024,0.00019999,2]
[360539588,1746865834393,-375.4209976,0.00019999,2]
[360539589,1746865834403,-536.24,0.00019999,2]
[360539590,1746865834414,-558.79,0.00019999,2]
[360539591,1746865834424,-558.79,0.00019999,2]
[360539592,1746865834434,-558.79,0.00019999,2]
[360539593,1746865834444,-558.79,0.00019999,2]
[360539594,1746865834455,-558.79,0.00019999,2]
[360539595,1746865834464,-558.79,0.00019999,2]
[360539596,1746865834474,-558.79,0.00019999,2]
[360539597,1746865834484,-558.79,0.00019999,2]
[360539598,1746865834494,-558.79,0.00019999,2]
[360539599,1746865834504,-558.79,0.00019999,2]
[360539600,1746865834515,-558.79,0.00019999,2]
[360539601,1746865834527,-558.79,0.00019999,2]
[360539602,1746865834536,-558.79,0.00019999,2]
[360539603,1746865834559,-558.79,0.00019999,2]
[360539604,1746865834571,-558.79,0.00019999,2]
[360539605,1746865834582,-558.79,0.00019999,2]
[360539606,1746865834592,-558.79,0.00019999,2]
[360539607,1746865834603,-558.79,0.00019999,2]
[360539608,1746865834614,-558.79,0.00019999,2]
[360539609,1746865834624,-558.79,0.00019999,2]
[360539610,1746865834635,-558.79,0.00019999,2]
[360539611,1746865834649,-558.79,0.00019999,2]
[360539612,1746865834661,-558.79,0.00019999,2]
[360539613,1746865834671,-558.793,0.00019999,2]
[360539614,1746865834683,-468.09148519,0.00019999,2]
[360539615,1746865834693,-380.58717803,0.00019999,2]
[360539616,1746865834703,-308.37,0.00019999,2]
[360539617,1746865834713,-215.94,0.00019999,2]
[360539618,1746865834725,-348.70447759,0.00019999,2]
[360539619,1746865834735,-500.0,0.00019999,2]
[360539620,1746865834745,-400.0,0.00019999,2]
[360539621,1746865834755,-400.0,0.00019999,2]
[360539622,1746865834766,-400.0,0.00019999,2]
[360539623,1746865834777,-400.0,0.00019999,2]
[360539624,1746865834787,-1052.67,0.00019999,2]
[360539625,1746865834798,-1052.67,0.00019999,2]
[360539626,1746865834808,-235.80107204,0.00019999,2]
[360539627,1746865834827,-816.86892796,0.00019999,2]
[360539628,1746865834838,-1052.67,0.00019999,2]
[360539629,1746865834848,-1052.67,0.00019999,2]
[360539630,1746865834860,-1052.67,0.00019999,2]
[360539631,1746865834870,-1052.67,0.00019999,2]
[360539632,1746865834880,-1052.67,0.00019999,2]
[360539633,1746865834890,-1052.67,0.00019999,2]
[360539634,1746865834900,-1052.67,0.00019999,2]
[360539635,1746865834910,-1052.67,0.00019999,2]
[360539636,1746865834921,-1052.67,0.00019999,2]
[360539637,1746865834932,-1052.67,0.00019999,2]
[360539638,1746865834943,-1052.67,0.00019999,2]
[360539639,1746865834954,-1052.67,0.00019999,2]
[360539640,1746865834965,-1052.67,0.00019999,2]
[360539641,1746865834975,-1052.67,0.00019999,2]
[360539642,1746865834987,-1052.67,0.00019999,2]
[360539643,1746865835003,-1052.67,0.00019999,2]
[360539644,1746865835013,-1052.67,0.00019999,2]
[360539645,1746865835024,-1052.67,0.00019999,2]
[360539646,1746865835035,-1052.67,0.00019999,2]
[360539647,1746865835047,-1052.67,0.00019999,2]
[360539648,1746865835058,-1052.8402,0.00019999,2]
[360539649,1746865835068,-400.0,0.00019999,2]
[360539650,1746865835079,-400.0,0.00019999,2]
[360539651,1746865835089,-380.27875041,0.00019999,2]
[360539652,1746865835100,-400.0,0.00019999,2]
[360539653,1746865835113,-281.94,0.00019999,2]
[360539654,1746865835123,-449.999999,0.00019999,2]
[360539655,1746865835132,-400.0,0.00019999,2]
[360539656,1746865835142,-400.0,0.00019999,2]
[360539657,1746865835152,-400.0,0.00019999,2]
[360539658,1746865835162,-400.0,0.00019999,2]
[360539659,1746865835173,-400.0,0.00019999,2]
[360539660,1746865835185,-400.0,0.00019999,2]
[360539661,1746865835197,-400.0,0.00019999,2]
[360539662,1746865835207,-206.57848195,0.00019999,2]
[360539663,1746865835219,-636.11496868,0.00019999,2]
[360539664,1746865835231,-381.56449742,0.00019999,2]
[360539665,1746865835248,-331.14851368,0.00019999,2]
[360539666,1746865835267,-351.92574701,0.00019999,2]
[360539669,1746865837994,-253.8606047,0.00019996,2]
[360539670,1746865838005,-2959.36124189,0.00019999,2]
[360539671,1746865838016,-904.20509796,0.00019999,2]
[360539672,1746865838028,-237.79490204,0.00019999,2]
[360539673,1746865838038,-20544.49611919,0.0002,2]
[360539674,1746865838057,-2453.29972335,0.0002,2]
[360539744,1746865840221,-272.62070086,0.00019999,2]
[360539745,1746865840232,-421.63929951,0.0002,2]
[360539757,1746865842929,-48297.29662676,0.0002,2]
[360539758,1746865842940,-81003.02184754,0.0002,2]
[360539762,1746865843093,-519.05,0.0002,2]
[360539763,1746865843105,-3740.03799785,0.0002,2]
[360539764,1746865843151,-302.10301,0.0002,2]
[360539784,1746865845911,-5937.0,0.0002,2]
[360539785,1746865845922,-3801.9856,0.0002,2]
[360539786,1746865845934,-600.7250033,0.0002,2]
[360539787,1746865846070,-462.09264945,0.0002,2]
[360539788,1746865846081,-33564.76452,0.0002,2]
[360539789,1746865846336,-5190.0,0.0002,2]
[360539841,1746866145109,200.0,0.00019054,2]
[360539842,1746866163837,496.95,0.0001715,2]
[360539843,1746866163886,496.95,0.00019414,2]
[360539856,1746866374678,200.0,0.0003,30]
[360539878,1746866492591,1024.0,0.000195,2]
[360539879,1746866510756,1000.0,0.00019052,2]
[360539881,1746866550915,150.0,0.00029232,120]
[360539882,1746866597773,1007.80267076,0.000195,4]
[360539883,1746866639808,250.0,0.00017,2]
[360539884,1746866640891,300.0,0.00019,2]
[360539885,1746866670846,150.0,0.00029061,120]
[360539886,1746866677716,1100.0,0.000195,3]
[360539887,1746866700607,150.0,0.0003,30]
[360539890,1746866853903,150.0,0.00030137,120]
[360539891,1746866854992,170.66,0.00019008,2]
[360539892,1746866855411,170.66,0.00028512,120]
[360539894,1746866874355,201.0,0.0003,30]
[360539897,1746866900217,2498.69,0.00019003,2]
[360539900,1746866968553,486.33,0.00019001,2]
[360539902,1746867000599,17979.49,0.00019001,2]
[360539914,1746867032139,-165.31,0.00019613,2]
[360539915,1746867032150,-250.0,0.00019623,2]
[360539916,1746867032159,-155.9755289,0.00019623,2]
[360539917,1746867032245,-44.0244711,0.00019623,2]
[360539918,1746867032255,-250.0,0.00019633,2]
[360539919,1746867032265,-191.45630862,0.0001965,2]
[360539920,1746867032275,-250.0,0.00019659,2]
[360539921,1746867032286,-200.0,0.00019659,2]
[360539922,1746867032296,-29.7540394,0.000197,2]
[360539923,1746867032319,-121.2459606,0.000197,2]
[360539924,1746867032330,-1716.2419353,0.000197,2]
[360539925,1746867032340,-196.64045338,0.000198,23]
[360539926,1746867032349,-207.4,0.00019888,2]
[360539927,1746867032359,-300.0,0.00019898,2]
[360539928,1746867032370,-303.5674,0.00019899,2]
[360539929,1746867032380,-184.0719032,0.00019899,2]
[360539930,1746867032390,-300.0,0.00019899,2]
[360539931,1746867032399,-300.0,0.00019899,2]
[360539932,1746867032409,-659.45803736,0.00019899,2]
[360539973,1746867038245,-540.54196264,0.00019899,2]
[360539974,1746867038256,-332.3535007,0.000199,2]
[360539975,1746867038267,-184.0719032,0.000199,2]
[360539976,1746867038276,-154.85753807,0.000199,2]
[360539977,1746867038285,-1976.41334016,0.000199,2]
[360539978,1746867038294,-500.0,0.00019973,2]
[360539979,1746867038303,-500.0,0.00019973,2]
[360539980,1746867038317,-174.95509927,0.00019973,2]
[360539981,1746867038327,-500.0,0.00019973,2]
[360539987,1746867038562,-334.73894211,0.0001999,2]
[360539988,1746867038586,-334.73894211,0.0001999,2]
[360539989,1746867038597,-334.73894211,0.0001999,2]
[360539990,1746867038615,-214.2583504,0.00019996,2]
[360539991,1746867038638,-6347.001091,0.00019996,2]
[360539992,1746867038656,-228.8722248,0.00019996,2]
[360539993,1746867038667,-924.8387912,0.00019996,2]
[360539994,1746867038678,-330.9660626,0.00019996,2]
[360539995,1746867038689,-478.041,0.00019998,2]
[360539996,1746867038700,-1119.94,0.00019998,2]
[360539997,1746867038710,-442.67226231,0.00019998,2]
[360539998,1746867038720,-400.0,0.00019998,2]
[360539999,1746867038730,-400.0,0.00019998,2]
[360540000,1746867038741,-448.59,0.00019998,2]
[360540001,1746867038751,-400.0,0.00019998,2]
[360540002,1746867038762,-288.31282811,0.00019998,2]
[360540003,1746867038772,-182.7209885,0.00019998,2]
[360540004,1746867038782,-627.36041036,0.00019999,2]
[360540005,1746867038793,-400.0,0.00019999,2]
[360540006,1746867038803,-400.0,0.00019999,2]
[360540007,1746867038814,-400.0,0.00019999,2]
[360540008,1746867038824,-400.0,0.00019999,2]
[360540009,1746867038835,-400.0,0.00019999,2]
[360540010,1746867038845,-400.0,0.00019999,2]
[360540011,1746867038855,-400.0,0.00019999,2]
[360540012,1746867038865,-200.70703128,0.00019999,2]
[360540013,1746867038876,-226.09851481,0.00019999,2]
[360540014,1746867038886,-201.21999999,0.00019999,2]
[360540015,1746867038898,-400.93504187,0.00019999,2]
[360540016,1746867038909,-400.0,0.00019999,2]
[360540017,1746867038919,-400.0,0.00019999,2]
[360540018,1746867038929,-400.0,0.00019999,2]
[360540019,1746867038940,-400.0,0.00019999,2]
[360540020,1746867038950,-394.67280322,0.00019999,2]
[360540021,1746867038960,-344.52719679,0.00019999,2]
[360540022,1746867038970,-314.92,0.00019999,2]
[360540023,1746867038980,-402.77852882,0.00019999,2]
[360540024,1746867038991,-400.0,0.00019999,2]
[360540025,1746867039001,-334.93158182,0.00019999,2]
[360540026,1746867039014,-349.90999998,0.00019999,2]
[360540027,1746867039024,-400.0,0.00019999,2]
[360540028,1746867039039,-400.0,0.00019999,2]
[360540029,1746867039051,-400.0,0.00019999,2]
[360540030,1746867039064,-450.0,0.00019999,2]
[360540031,1746867039075,-400.0,0.00019999,2]
[360540032,1746867039087,-272.19,0.00019999,2]
[360540033,1746867039098,-400.0,0.00019999,2]
[360540034,1746867039108,-7888.35,0.00019999,2]
[360540035,1746867039117,-1931.88662731,0.00019999,2]
[360540036,1746867039131,-4709.90879101,0.00019999,2]
[360540037,1746867039143,-1182.79697588,0.00019999,2]
[360540038,1746867039155,-63.7576058,0.00019999,2]
[360540039,1746867039166,-6053.66933875,0.00019999,2]
[360540041,1746867040408,-555.97641401,0.000199,2]
[360540042,1746867040420,-1112.04253345,0.000199,2]
[360540043,1746867040431,-1834.68066125,0.00019999,2]
[360540044,1746867040440,-7888.35,0.00019999,2]
[360540045,1746867040451,-7230.21203167,0.00019999,2]
[360540046,1746867040463,-361.39740667,0.00019999,2]
[360540047,1746867040624,-296.74056166,0.00019999,2]
[360540048,1746867040635,-2423.25943834,0.00019999,2]
[360540053,1746867046166,-3712.08920011,0.00019999,2]
[360540054,1746867046275,-1753.00136155,0.00019999,2]
[360540055,1746867046287,-7888.35,0.00019999,2]
[360540056,1746867046298,-7888.35,0.00019999,2]
[360540057,1746867046311,-7888.35,0.00019999,2]
[360540058,1746867046322,-7888.35,0.00019999,2]
[360540059,1746867046334,-7888.35,0.00019999,2]
[360540060,1746867046347,-7888.35,0.00019999,2]
[360540061,1746867046359,-4580.38000518,0.00019999,2]
[360540062,1746867046389,-901.9,0.00019999,2]
[360540063,1746867046405,-312.73481042,0.00019999,2]
[360540072,1746867046783,-2093.3351844,0.00019999,2]
[360540073,1746867046800,-7888.35,0.00019999,2]
[360540074,1746867046813,-7888.35,0.00019999,2]
[360540075,1746867046824,-7888.35,0.00019999,2]
[360540076,1746867046836,-7888.35,0.00019999,2]
[360540077,1746867046847,-7888.35,0.00019999,2]
[360540079,1746867046858,-15.9851977,0.00019999,2]
[360540080,1746867046872,-1318.3450002,0.00019999,2]
[360540081,1746867046894,-6554.0198021,0.00019999,2]
[360540082,1746867046906,-3855.75819791,0.00019999,2]
[360540085,1746867047058,-4032.59180209,0.00019999,2]
[360540086,1746867047071,-7888.35,0.00019999,2]
[360540087,1746867047084,-4668.75961838,0.00019999,2]
[360540088,1746867047101,-270.19472601,0.00019999,2]
[360540089,1746867047130,-2949.39565561,0.00019999,2]
[360540091,1746867047152,-7888.35,0.00019999,2]
[360540093,1746867047165,-7888.55,0.00019999,2]
[360540096,1746867047179,-400.0,0.00019999,2]
[360540097,1746867047195,-400.0,0.00019999,2]
[360540098,1746867047212,-400.0,0.00019999,2]
[360540099,1746867047225,-400.0,0.00019999,2]
[360540100,1746867047238,-400.0,0.00019999,2]
[360540101,1746867047252,-400.0,0.00019999,2]
[360540102,1746867047265,-400.0,0.00019999,2]
[360540103,1746867047278,-400.0,0.00019999,2]
[360540105,1746867047291,-400.0,0.00019999,2]
[360540107,1746867047305,-400.0,0.00019999,2]
[360540109,1746867047319,-400.0,0.00019999,2]
[360540112,1746867047332,-400.0,0.00019999,2]
[360540114,1746867047351,-400.0,0.00019999,2]
[360540116,1746867047364,-400.0,0.00019999,2]
[360540118,1746867047377,-400.0,0.00019999,2]
[360540120,1746867047390,-400.0,0.00019999,2]
[360540123,1746867047404,-400.0,0.00019999,2]
[360540125,1746867047425,-400.0,0.00019999,2]
[360540127,1746867047438,-400.0,0.00019999,2]
[360540128,1746867047451,-400.0,0.00019999,2]
[360540130,1746867047464,-400.0,0.00019999,2]
[360540132,1746867047476,-400.0,0.00019999,2]
[360540134,1746867047488,-165.22646177,0.00019999,2]
[360540135,1746867047500,-400.0,0.00019999,2]
[360540136,1746867047512,-400.0,0.00019999,2]
[360540137,1746867047528,-400.0,0.00019999,2]
[360540138,1746867047541,-400.0,0.00019999,2]
[360540139,1746867047553,-400.0,0.00019999,2]
[360540140,1746867047566,-400.0,0.00019999,2]
[360540141,1746867047578,-400.0,0.00019999,2]
[360540142,1746867047590,-400.0,0.00019999,2]
[360540143,1746867047602,-400.0,0.00019999,2]
[360540144,1746867047615,-400.0,0.00019999,2]
[360540145,1746867047649,-400.0,0.00019999,2]
[360540146,1746867047661,-400.0,0.00019999,2]
[360540147,1746867047674,-400.0,0.00019999,2]
[360540148,1746867047688,-354.96050951,0.00019999,2]
[360540149,1746867047700,-400.5705719,0.00019999,2]
[360540150,1746867047713,-423.63979273,0.00019999,2]
[360540151,1746867047726,-400.0,0.00019999,2]
[360540152,1746867047740,-400.0,0.00019999,2]
[360540153,1746867047753,-400.0,0.00019999,2]
[360540154,1746867047766,-213.98954051,0.00019999,2]
[360540155,1746867047778,-172.75876518,0.00019999,2]
[360540156,1746867047791,-799.0,0.0002,2]
[360540157,1746867047810,-4024.0,0.0002,2]
[360540158,1746867047823,-5937.0,0.0002,2]
[360540159,1746867047835,-267.91827482,0.0002,2]
[360540160,1746867047847,-22977.70242795,0.0002,2]
[360540161,1746867047862,-4407.2763166,0.0002,2]
[360540162,1746867146279,623.21,0.00019192,2]
[360540163,1746867159683,682.23,0.00019174,2]
[360540164,1746867211186,150.0,0.00030058,120]
[360540165,1746867282338,471.03,0.00019149,2]
[360540166,1746867334775,310.59,0.00019111,2]
[360540167,1746867364129,500.69,0.00017193,2]
[360540168,1746867364329,500.69,0.00019457,2]
[360540169,1746867450606,150.0,0.00028571,120]
[360540170,1746867486779,997.99999999,0.00030137,120]
[360540171,1746867494509,500.0,0.0001911,2]
[360540172,1746867590775,223.38,0.00019087,2]
[360540180,1746867750513,11755.85285461,0.000301,120]
[360540214,1746867812831,634.57078725,0.0003,120]
[360540215,1746867814370,292.65,0.0003,30]
[360540217,1746867838916,1000.0,0.00019044,2]
[360540223,1746867861616,183.34,0.00019044,2]
[360540224,1746867862042,183.34,0.00028566,120]
[360540260,1746868217645,554.043,0.0003,30]
[360540276,1746868232302,-164.48,0.00019608,2]
[360540278,1746868232314,-250.0,0.00019703,2]
[360540280,1746868232325,-750.5524602,0.00019797,2]
[360540281,1746868232337,-1302.66754437,0.00019797,2]
[360540283,1746868232349,-2885.70999543,0.00019797,2]
[360540284,1746868232359,-200.0,0.000198,2]
[360540285,1746868232370,-200.0,0.00019857,2]
[360540286,1746868232380,-207.4,0.00019888,2]
[360540287,1746868232394,-300.0,0.00019899,2]
[360540288,1746868232404,-1200.0,0.00019899,2]
[360540289,1746868232414,-300.0,0.00019899,2]
[360540290,1746868232424,-369.7432695,0.000199,2]
[360540291,1746868232434,-263.82819838,0.000199,2]
[360540292,1746868232445,-12500.0,0.000199,2]
[360540293,1746868232456,-2261.1497967,0.000199,2]
[360540294,1746868232469,-2378.1,0.000199,2]
[360540295,1746868232482,-3582.43870301,0.000199,2]
[360540296,1746868232494,-673.99615861,0.000199,2]
[360540297,1746868232506,-3604.31534168,0.000199,2]
[360540298,1746868232516,-195.9604057,0.000199,2]
[360540299,1746868232526,-2201.98407125,0.000199,2]
[360540300,1746868232537,-272.80967872,0.000199,2]
[360540301,1746868232548,-1062.82719888,0.000199,2]
[360540302,1746868232560,-23.13775492,0.000199,2]
[360540303,1746868232571,-135.9733271,0.000199,2]
[360540304,1746868232581,-169.66159445,0.000199,2]
[360540305,1746868232591,-169.72256866,0.000199,2]
[360540306,1746868232601,-2673.22702044,0.000199,2]
[360540307,1746868232612,-153.0,0.00019904,2]
[360540308,1746868232622,-4024.0,0.00019904,2]
[360540309,1746868232631,-5937.0,0.00019904,2]
[360540310,1746868232641,-500.0,0.00019973,2]
[360540311,1746868232651,-500.0,0.00019973,2]
[360540312,1746868232661,-500.0,0.00019973,2]
[360540313,1746868232671,-500.0,0.00019973,2]
[360540314,1746868232680,-500.0,0.00019973,2]
[360540315,1746868232690,-671.50747916,0.00019988,2]
[360540316,1746868232700,-382.433,0.0001999,2]
[360540317,1746868232711,-175.8407789,0.00019996,2]
[360540318,1746868232720,-191.6921717,0.00019996,2]
[360540319,1746868232729,-2600.4326089,0.00019996,2]
[360540320,1746868232739,-8706.4422962,0.00019996,2]
[360540321,1746868232749,-1002.95614401,0.00019997,2]
[360540322,1746868232758,-500.0,0.00019998,2]
[360540323,1746868232769,-500.0,0.00019998,2]
[360540324,1746868232779,-500.0,0.00019998,2]
[360540325,1746868232789,-500.0,0.00019998,2]
[360540326,1746868232799,-500.0,0.00019998,2]
[360540327,1746868232813,-500.0,0.00019998,2]